bitfinex/quotes_BTCUSD_20250119
["timestamp","ask_amount","ask_price","bid_price","bid_amount"]
[1737260266294,0.55873367,105040.0,105030.0,0.00089817]
[1737260266674,0.65797448,105040.0,105030.0,0.00089817]
[1737260267029,0.55873367,105040.0,105030.0,0.00089817]
[1737260267236,0.7714391,105040.0,105030.0,0.00089817]
[1737260267544,0.6908728,105040.0,105030.0,0.00089817]
[1737260268144,0.70040666,105040.0,105030.0,0.00089817]
[1737260268551,0.8940395,105040.0,105030.0,0.00089817]
[1737260268775,0.8940395,105040.0,104970.0,0.02007903]
[1737260268776,0.15,104980.0,104970.0,0.02007903]
[1737260269058,0.35954786,104980.0,104970.0,0.0008988]
[1737260269250,0.45954786,104980.0,104970.0,0.0008988]
[1737260269542,0.55878867,104980.0,104970.0,0.0008988]
[1737260269952,0.12924527,104950.0,104940.0,0.000428]
[1737260270163,0.22855307,104950.0,104940.0,0.000428]
[1737260270451,0.37855307,104950.0,104940.0,0.00092791]
[1737260270783,0.46451938,104950.0,104940.0,0.00092791]
[1737260270992,0.52855307,104950.0,104940.0,0.00092791]
[1737260271204,0.47855307,104950.0,104940.0,0.00092791]
[1737260271458,0.32855307,104950.0,104940.0,0.00092791]
[1737260271687,0.47855307,104950.0,104940.0,0.00092791]
[1737260271906,0.285887,104940.0,104920.0,0.083]
[1737260272124,0.35959286,104930.0,104920.0,0.00050041]
[1737260272332,0.245301,104930.0,104920.0,0.00050041]
[1737260272529,0.20959286,104930.0,104920.0,0.00050041]
[1737260272728,0.35959286,104930.0,104920.0,0.00050041]
[1737260273352,0.55883367,104930.0,104920.0,0.00050041]
[1737260273557,0.55807448,104930.0,104920.0,0.00050041]
[1737260273757,0.24531,104920.0,104910.0,0.0004282]
[1737260273967,0.45884267,104920.0,104910.0,0.00014991]
[1737260274571,1.26434267,104920.0,104910.0,0.00014991]
[1737260274800,0.095328,104900.0,104890.0,0.0004283]
[1737260275002,0.30886067,104900.0,104890.0,0.00057832]
[1737260275623,0.32840027,104900.0,104890.0,0.00057832]
[1737260275819,0.31410841,104900.0,104890.0,0.00057832]
[1737260276021,0.36410841,104900.0,104890.0,0.00057832]
[1737260276200,0.2648676,104900.0,104890.0,0.00057832]
[1737260276403,0.2648676,104900.0,104890.0,0.00696394]
[1737260276639,0.245328,104900.0,104890.0,0.00696394]
[1737260277841,0.45961986,104900.0,104890.0,0.00696394]
[1737260278297,0.60886067,104900.0,104890.0,0.00696394]
[1737260278514,0.45886067,104900.0,104890.0,0.00696394]
[1737260278717,0.54475991,104900.0,104890.0,0.00057832]
[1737260278915,0.59105991,104900.0,104890.0,0.00057832]
[1737260279130,0.095337,104890.0,104880.0,0.00143427]
[1737260279331,0.245347,104880.0,104870.0,0.00089817]
[1737260279507,0.4756597,104880.0,104870.0,0.00089817]
[1737260280489,0.45887967,104880.0,104870.0,0.00089817]
[1737260280689,0.44458781,104880.0,104870.0,0.00089817]
[1737260281100,0.345347,104880.0,104870.0,0.00089817]
[1737260281304,0.095347,104880.0,104870.0,0.00089817]
[1737260281551,0.03396227,104860.0,104850.0,0.2714751]
[1737260281757,0.03396227,104860.0,104850.0,0.27533791]
[1737260281980,0.095357,104870.0,104850.0,0.27533791]
[1737260282380,0.095357,104870.0,104850.0,0.46608491]
[1737260282613,0.03396227,104860.0,104850.0,0.46608491]
[1737260282816,0.03396227,104870.0,104860.0,0.095365]
[1737260282995,0.09534,104890.0,104870.0,0.095351]
[1737260283290,0.435997,104900.0,104870.0,0.38625429]
[1737260283466,0.095338,104890.0,104870.0,0.38530081]
[1737260283799,0.095338,104890.0,104870.0,0.19459181]
[1737260284827,0.03396227,104870.0,104850.0,0.36734501]
[1737260284974,0.095358,104870.0,104850.0,0.46658682]
[1737260285174,0.03396227,104860.0,104850.0,0.46658682]
[1737260285359,0.095356,104870.0,104850.0,0.61658682]
[1737260285791,0.190694,104880.0,104870.0,0.00116976]
[1737260285998,0.286041,104880.0,104870.0,0.00116976]
[1737260286192,0.38991781,104890.0,104870.0,0.00116976]
[1737260286193,0.286021,104890.0,104870.0,0.00116976]
[1737260286401,0.095344,104890.0,104870.0,0.28723576]
[1737260286608,0.095344,104890.0,104870.0,0.09652476]
[1737260286801,0.190676,104890.0,104870.0,0.00116976]
[1737260287081,0.095347,104880.0,104870.0,0.00116976]
[1737260287256,0.70887967,104880.0,104870.0,0.00116976]
[1737260287755,0.44458781,104880.0,104870.0,0.00116976]
[1737260287983,0.55290304,104880.0,104870.0,0.00116976]
[1737260288379,1.04458781,104880.0,104870.0,0.00116976]
[1737260288600,1.15887967,104880.0,104870.0,0.00116976]
[1737260288882,0.25,104860.0,104850.0,0.00092901]
[1737260289029,0.345365,104860.0,104850.0,0.00092901]
[1737260289684,0.44460581,104860.0,104850.0,0.00092901]
[1737260289854,0.46286012,104860.0,104850.0,0.00092901]
[1737260290063,0.44460581,104860.0,104850.0,0.00092901]
[1737260290540,0.60889767,104860.0,104850.0,0.00092901]
[1737260290717,1.15889767,104860.0,104850.0,0.00092901]
[1737260290918,0.495383,104840.0,104830.0,0.0004282]
[1737260291126,0.64660587,104840.0,104830.0,0.0004282]
[1737260291334,0.55891567,104840.0,104830.0,0.0004282]
[1737260291545,0.45891567,104840.0,104830.0,0.0004282]
[1737260291969,0.45891567,104840.0,104800.0,0.367157]
[1737260291970,0.286208,104820.0,104800.0,0.367157]
[1737260293140,0.286208,104820.0,104800.0,0.36730706]
[1737260293363,0.286208,104820.0,104800.0,0.08105006]
[1737260293580,0.09541,104810.0,104800.0,0.00313222]
[1737260293947,0.24541,104810.0,104800.0,0.00313222]
[1737260294149,0.50970186,104810.0,104800.0,0.00313222]
[1737260294387,0.39541,104810.0,104800.0,0.00313222]
[1737260294739,0.49541,104810.0,104800.0,0.00313222]
[1737260294942,0.60970186,104810.0,104800.0,0.00313222]
[1737260295141,0.72800524,104810.0,104800.0,0.00313222]
[1737260295345,0.62876443,104810.0,104800.0,0.00313222]
[1737260295641,0.51447257,104810.0,104800.0,0.00790562]
[1737260295837,0.51447257,104810.0,104800.0,0.01421835]
[1737260296042,0.49541,104810.0,104800.0,0.01421835]
[1737260296199,0.55894267,104810.0,104800.0,0.01421835]
[1737260296603,0.45894267,104810.0,104800.0,0.01421835]
[1737260296828,0.245428,104790.0,104780.0,0.0004882]
[1737260296985,0.55896067,104790.0,104780.0,0.00063801]
[1737260297389,0.45896067,104790.0,104780.0,0.00063801]
[1737260298009,1.15896067,104790.0,104780.0,0.00063801]
[1737260298235,1.17809008,104790.0,104780.0,0.00063801]
[1737260298437,1.27733089,104790.0,104780.0,0.00063801]
[1737260298634,0.095438,104780.0,104770.0,0.0158908]
[1737260298838,0.48197067,104780.0,104770.0,0.01603422]
[1737260299039,0.095447,104770.0,104760.0,0.00014342]
[1737260299251,0.53007967,104770.0,104760.0,0.00023909]
[1737260299507,0.268456,104760.0,104750.0,0.0002391]
[1737260299626,0.48198867,104760.0,104750.0,0.00028906]
[1737260300047,1.18198867,104760.0,104750.0,0.00028906]
[1737260300250,1.20136261,104760.0,104750.0,0.00028906]
[1737260300461,0.245483,104730.0,104720.0,0.000429]
[1737260300677,0.44472381,104730.0,104720.0,0.00093024]
[1737260301093,1.40901567,104730.0,104720.0,0.00741221]
[1737260301305,1.22720846,104730.0,104720.0,0.00093024]
[1737260302216,0.09551,104700.0,104690.0,0.000429]
[1737260302488,0.29475081,104700.0,104690.0,0.000429]
[1737260302895,0.09924081,104700.0,104690.0,0.000429]
[1737260303116,0.245506,104710.0,104690.0,0.095947]
[1737260303278,0.09551,104700.0,104690.0,0.000429]
[1737260304167,0.19475081,104700.0,104690.0,0.000429]
[1737260304547,0.29475081,104700.0,104690.0,0.000429]
[1737260304964,0.49285081,104700.0,104690.0,0.000429]
[1737260305167,0.345529,104680.0,104670.0,0.0158908]
[1737260305426,0.62725446,104680.0,104670.0,0.0158908]
[1737260305734,0.52725446,104680.0,104670.0,0.0158908]
[1737260306129,1.22725446,104680.0,104670.0,0.0158908]
[1737260306482,1.22725446,104680.0,104670.0,0.0159865]
[1737260306682,1.32629527,104680.0,104670.0,0.0159865]
[1737260306964,1.22705446,104680.0,104670.0,0.0159865]
[1737260308696,1.19924081,104680.0,104670.0,0.0159865]
[1737260308896,0.79924081,104680.0,104670.0,0.0159865]
[1737260309413,0.71878479,104680.0,104670.0,0.0159865]
[1737260309613,0.96878479,104680.0,104670.0,0.0159865]
[1737260309851,1.26043308,104680.0,104670.0,0.0159865]
[1737260310034,1.0680256,104680.0,104670.0,0.0159865]
[1737260310599,0.9180256,104680.0,104670.0,0.0159865]
[1737260311008,1.0680256,104680.0,104670.0,0.0159865]
[1737260311363,1.04924081,104680.0,104670.0,0.0159865]
[1737260311698,0.73396227,104680.0,104670.0,0.1115245]
[1737260311936,0.7,104680.0,104670.0,0.1115245]
[1737260312138,0.73396227,104680.0,104670.0,0.36076531]
[1737260312346,0.7,104680.0,104670.0,0.36076531]
[1737260312719,0.68551147,104680.0,104670.0,0.63606531]
[1737260312919,0.03396227,104710.0,104700.0,0.24551]
[1737260313158,0.05320611,104720.0,104710.0,0.245501]
[1737260313369,0.03396227,104720.0,104710.0,0.245501]
[1737260313575,0.03396227,104730.0,104720.0,0.286457]
[1737260313775,0.21644692,104740.0,104730.0,0.095483]
[1737260314176,0.28248465,104760.0,104750.0,0.095465]
[1737260314418,0.18298265,104760.0,104750.0,0.095465]
[1737260314622,0.000498,104760.0,104750.0,0.095465]
[1737260314832,0.03396227,104750.0,104740.0,0.286402]
[1737260315034,0.03396227,104730.0,104720.0,0.286457]
[1737260315576,0.18248465,104740.0,104720.0,0.286471]
[1737260315793,0.18248465,104740.0,104720.0,0.095489]
[1737260316001,0.03396227,104720.0,104710.0,0.286489]
[1737260316398,0.03396227,104720.0,104710.0,0.44277712]
[1737260316599,0.03396227,104720.0,104710.0,0.436489]
[1737260317036,0.21644692,104720.0,104710.0,0.436489]
[1737260317235,0.03396227,104710.0,104700.0,0.286523]
[1737260317438,0.18298235,104720.0,104690.0,0.191022]
[1737260317639,0.18248465,104710.0,104700.0,0.286531]
[1737260317992,0.21604692,104710.0,104700.0,0.286531]
[1737260318602,0.03405997,104720.0,104710.0,0.245501]
[1737260318745,0.21654462,104720.0,104710.0,0.245501]
[1737260318942,0.18298235,104720.0,104710.0,0.34474181]
[1737260319343,0.18298235,104720.0,104710.0,0.36774181]
[1737260319702,0.0004977,104720.0,104710.0,0.36774181]
[1737260319845,0.0004977,104720.0,104710.0,0.51774181]
[1737260320052,0.0004977,104720.0,104710.0,0.66637954]
[1737260320372,0.0004977,104720.0,104710.0,0.44994181]
[1737260320373,0.18298235,104720.0,104710.0,0.44994181]
[1737260320568,0.18298235,104720.0,104710.0,0.42694181]
[1737260321448,0.18298235,104720.0,104710.0,0.44994181]
[1737260321684,0.18298235,104720.0,104710.0,0.34474181]
[1737260322314,0.21654462,104720.0,104710.0,0.245501]
[1737260322446,0.18298235,104720.0,104710.0,0.095501]
[1737260322648,0.18298235,104720.0,104700.0,0.286513]
[1737260322984,0.18298235,104720.0,104710.0,0.095501]
[1737260323192,0.18298235,104720.0,104700.0,0.286512]
[1737260324027,0.20185075,104720.0,104700.0,0.286512]
[1737260324322,0.03356227,104700.0,104690.0,0.286542]
[1737260324526,0.03356227,104690.0,104670.0,0.4939848]
[1737260324732,0.21604692,104680.0,104670.0,0.0163198]
[1737260324953,0.18248465,104680.0,104670.0,0.1118578]
[1737260325363,0.18248465,104680.0,104670.0,0.21109861]
[1737260325364,0.21604692,104680.0,104670.0,0.21109861]
[1737260326246,0.21604692,104680.0,104670.0,0.21119431]
[1737260326661,0.21604692,104680.0,104670.0,0.21448172]
[1737260327097,0.18248465,104680.0,104670.0,0.36448172]
[1737260327276,0.21604692,104680.0,104670.0,0.36448172]
[1737260328865,0.21604692,104680.0,104670.0,0.26524091]
[1737260329093,0.21604692,104680.0,104670.0,0.01970291]
[1737260329306,0.18248465,104680.0,104670.0,0.01970291]
[1737260329509,0.03356227,104660.0,104650.0,0.286646]
[1737260329713,0.03356227,104660.0,104650.0,0.28679628]
[1737260329714,0.21604692,104660.0,104650.0,0.28679628]
[1737260329908,0.21604692,104660.0,104650.0,0.43679628]
[1737260330112,0.21604692,104660.0,104640.0,0.3827352]
[1737260330113,0.28172546,104660.0,104640.0,0.0004892]
[1737260330368,0.18248465,104660.0,104640.0,0.09610225]
[1737260330573,0.18248465,104660.0,104640.0,0.28723025]
[1737260331077,0.18248465,104660.0,104640.0,0.09610225]
[1737260331253,0.18248465,104660.0,104640.0,0.28723125]
[1737260331622,0.18248465,104660.0,104650.0,0.095556]
[1737260331955,0.03356227,104660.0,104650.0,0.245556]
[1737260332173,0.03356227,104670.0,104660.0,0.095542]
[1737260332367,0.18248465,104680.0,104660.0,0.286633]
[1737260332903,0.20197975,104680.0,104660.0,0.286633]
[1737260333050,0.03356227,104670.0,104660.0,0.286633]
[1737260333250,0.18248465,104680.0,104660.0,0.286633]
[1737260333481,0.18248465,104680.0,104670.0,0.095538]
[1737260333687,0.03356227,104670.0,104660.0,0.286621]
[1737260334072,0.37801365,104680.0,104650.0,0.436648]
[1737260334273,0.03356227,104650.0,104640.0,0.15053925]
[1737260334517,0.18248465,104660.0,104650.0,0.095556]
[1737260334663,0.03356227,104650.0,104640.0,0.43722725]
[1737260335079,0.03356227,104650.0,104640.0,0.24610425]
[1737260335284,0.03356227,104650.0,104640.0,0.15053925]
[1737260335502,0.18248465,104660.0,104640.0,0.15053925]
[1737260335707,0.18248465,104660.0,104640.0,0.24610225]
[1737260335947,0.18248465,104660.0,104640.0,0.43723225]
[1737260336860,0.18248465,104660.0,104640.0,0.24610225]
[1737260337008,0.21604692,104660.0,104640.0,0.44091106]
[1737260337219,0.21604692,104660.0,104650.0,0.095556]
[1737260338358,0.18248465,104660.0,104650.0,0.0004294]
[1737260338793,0.37727246,104660.0,104650.0,0.0004294]
[1737260338998,0.47727246,104660.0,104650.0,0.0004294]
[1737260339532,0.60097246,104660.0,104650.0,0.0004294]
[1737260340172,0.50097246,104660.0,104650.0,0.0004294]
[1737260340400,0.30618465,104660.0,104650.0,0.0004294]
[1737260340739,0.22918465,104660.0,104650.0,0.0959854]
[1737260341032,0.21604692,104660.0,104650.0,0.0959854]
[1737260341198,0.03356227,104660.0,104650.0,0.0959854]
[1737260342183,0.21604692,104660.0,104650.0,0.0959854]
[1737260343197,0.18248465,104660.0,104650.0,0.0004294]
[1737260345405,0.18248465,104660.0,104650.0,0.0959854]
[1737260345829,0.03356227,104650.0,104640.0,0.00053925]
[1737260346008,0.61807346,104660.0,104640.0,0.00053925]
[1737260346229,0.095556,104650.0,104640.0,0.00053925]
[1737260346412,0.19479681,104650.0,104640.0,0.00053925]
[1737260346815,0.09924081,104650.0,104640.0,0.00053925]
[1737260348038,0.0497,104660.0,104640.0,0.09610325]
[1737260348239,0.03356227,104650.0,104640.0,0.28723225]
[1737260348355,0.0497,104660.0,104640.0,0.09610325]
[1737260348584,0.06862976,104660.0,104640.0,0.28723225]
[1737260349010,0.03356227,104650.0,104640.0,0.43723325]
[1737260349287,0.18248465,104670.0,104650.0,0.095556]
[1737260349523,0.18248465,104670.0,104650.0,0.286667]
[1737260349727,0.20203023,104670.0,104650.0,0.095556]
[1737260349937,0.20203023,104670.0,104650.0,0.286668]
[1737260351082,0.00090216,104660.0,104650.0,0.286668]
[1737260351282,0.03356227,104650.0,104640.0,0.34165525]
[1737260351483,0.03356227,104650.0,104640.0,0.43721425]
[1737260353419,0.03356227,104650.0,104640.0,0.24609825]
[1737260355563,0.03446443,104660.0,104650.0,0.095556]
[1737260355964,0.00090216,104660.0,104650.0,0.34479681]
[1737260356543,0.00090216,104660.0,104650.0,0.51779681]
[1737260356750,0.00090216,104660.0,104650.0,0.58423454]
[1737260357321,1.6e-07,104660.0,104650.0,0.82656266]
[1737260357751,0.00090174,104710.0,104700.0,0.09551]
[1737260357961,0.00090174,104710.0,104700.0,0.34475081]
[1737260358844,0.00090174,104710.0,104700.0,0.43418854]
[1737260359059,0.00139959,104710.0,104700.0,0.43418854]
[1737260359264,0.00139959,104710.0,104700.0,0.6993612]
[1737260359467,0.00139959,104710.0,104700.0,0.58418854]
[1737260360118,0.00139959,104710.0,104700.0,0.58274854]
[1737260360331,0.02946422,104750.0,104740.0,0.095474]
[1737260360479,0.02961353,104750.0,104740.0,0.095474]
[1737260360686,0.00014931,104750.0,104740.0,0.34471481]
[1737260361565,0.00014931,104750.0,104740.0,0.41525059]
[1737260362621,0.00014931,104750.0,104740.0,0.34471481]
[1737260363024,0.02961353,104750.0,104740.0,0.15]
[1737260363247,0.02961353,104750.0,104740.0,0.245474]
[1737260363455,0.02961353,104750.0,104730.0,0.477381]
[1737260363648,0.02946422,104740.0,104720.0,0.28646]
[1737260363877,0.02946422,104730.0,104710.0,0.477479]
[1737260364085,0.02946422,104730.0,104720.0,0.095492]
[1737260364779,0.02946422,104720.0,104710.0,0.436485]
[1737260366101,0.02946422,104720.0,104710.0,0.459485]
[1737260366317,0.02946422,104720.0,104710.0,0.268495]
[1737260371596,0.02946422,104720.0,104700.0,0.477522]
[1737260371798,0.02946422,104720.0,104710.0,0.095501]
[1737260372008,0.02946422,104710.0,104690.0,0.477576]
[1737260372184,0.02946422,104700.0,104690.0,0.286542]
[1737260372359,0.02946422,104700.0,104690.0,0.095513]
[1737260373165,0.02946422,104700.0,104690.0,0.00049785]
[1737260373568,0.37326524,104710.0,104690.0,0.00049785]
[1737260373800,0.09551,104700.0,104690.0,0.00049785]
[1737260374338,0.24465081,104700.0,104690.0,0.00049785]
[1737260375105,0.26347911,104700.0,104690.0,0.00049785]
[1737260375310,0.16796911,104700.0,104690.0,0.00049785]
[1737260375472,0.26347911,104700.0,104690.0,0.00049785]
[1737260376347,0.16796911,104700.0,104690.0,0.00049785]
[1737260376491,6.26347911,104700.0,104690.0,0.00049785]
[1737260378527,6.09819252,104700.0,104690.0,0.09601785]
[1737260379143,6.0,104700.0,104690.0,0.09601785]
[1737260379345,6.02946422,104700.0,104690.0,0.09601785]
[1737260379710,6.0,104700.0,104690.0,0.24601785]
[1737260380458,6.02946422,104700.0,104690.0,0.24601785]
[1737260380660,6.14450579,104700.0,104690.0,0.24601785]
[1737260381305,6.11504157,104700.0,104690.0,0.15049785]
[1737260381499,6.21055157,104700.0,104690.0,0.00049785]
[1737260381920,6.11504157,104700.0,104690.0,0.00049785]
[1737260382286,6.21055157,104700.0,104690.0,0.00049785]
[1737260382487,6.11504157,104700.0,104690.0,0.00049785]
[1737260382696,6.30979238,104700.0,104690.0,0.00049785]
[1737260383281,6.21428238,104700.0,104690.0,0.00049785]
[1737260383484,6.11504157,104700.0,104690.0,0.09601785]
[1737260383734,6.0,104700.0,104690.0,0.09601785]
[1737260384668,6.02946422,104700.0,104690.0,0.09601785]
[1737260385075,6.0,104700.0,104690.0,0.00049785]
[1737260385905,6.0,104700.0,104690.0,0.09601785]
[1737260386145,6.02946422,104700.0,104690.0,0.09601785]
[1737260386279,6.02946422,104700.0,104690.0,0.09644705]
[1737260387318,6.0,104700.0,104690.0,0.36868786]
[1737260389165,6.0,104700.0,104690.0,0.51868786]
[1737260389868,6.0,104700.0,104690.0,0.36868786]
[1737260391303,6.0,104700.0,104690.0,0.51868786]
[1737260396403,6.0,104700.0,104690.0,0.34568786]
[1737260396630,6.0,104700.0,104690.0,0.49568786]
[1737260397363,6.0,104700.0,104690.0,0.51868786]
[1737260397946,6.02946422,104700.0,104690.0,0.24644705]
[1737260399427,6.0,104700.0,104690.0,0.36868786]
[1737260399787,6.0,104700.0,104690.0,0.24644705]
[1737260399788,6.02946422,104700.0,104690.0,0.24644705]
[1737260400424,6.0,104700.0,104690.0,0.24644705]
[1737260400649,6.02946422,104700.0,104690.0,0.24644705]
[1737260400834,6.0,104700.0,104690.0,0.36868786]
[1737260402016,6.02946422,104700.0,104690.0,0.24644705]
[1737260402460,6.02946422,104700.0,104690.0,0.36868786]
[1737260402461,6.0,104700.0,104690.0,0.36868786]
[1737260402857,6.0,104700.0,104690.0,0.24644705]
[1737260403084,6.02946422,104700.0,104690.0,0.24644705]
[1737260403849,6.0,104700.0,104690.0,0.24644705]
[1737260404075,6.1232,104700.0,104690.0,0.24644705]
[1737260404534,6.0454,104700.0,104690.0,0.24644705]
[1737260404676,6.0,104700.0,104690.0,0.36868786]
[1737260405310,6.0,104700.0,104690.0,0.48372943]
[1737260405547,6.0,104700.0,104690.0,0.36868786]
[1737260407479,6.0,104700.0,104690.0,0.73401579]
[1737260408304,6.0,104700.0,104690.0,0.85986623]
[1737260409135,6.0,104700.0,104690.0,1.10566789]
[1737260409678,6.0,104700.0,104690.0,0.6321887]
[1737260409884,6.0,104700.0,104690.0,0.75243812]
[1737260410321,6.0,104700.0,104690.0,0.80516677]
[1737260410763,6.0,104700.0,104690.0,0.45243812]
[1737260410969,6.02946422,104700.0,104690.0,0.4816922]
[1737260411384,6.0,104700.0,104690.0,0.73093301]
[1737260411594,6.0,104700.0,104690.0,1.01897458]
[1737260411797,6.0,104700.0,104690.0,0.9333747]
[1737260412209,6.0,104700.0,104690.0,0.96311114]
[1737260412815,6.0,104700.0,104690.0,1.04871102]
[1737260413240,6.0,104700.0,104690.0,1.1192468]
[1737260413429,6.0,104700.0,104690.0,1.08130523]
[1737260413572,6.0,104700.0,104690.0,0.93366945]
[1737260413779,6.0,104700.0,104690.0,0.80517456]
[1737260414628,6.0,104700.0,104690.0,0.65517456]
[1737260414850,6.0,104700.0,104690.0,0.62543812]
[1737260415538,6.0,104700.0,104690.0,0.89047969]
[1737260415744,5.937796,104700.0,104690.0,1.11923569]
[1737260415945,5.73195117,104700.0,104690.0,1.24764611]
[1737260416223,5.69374717,104700.0,104690.0,1.24764611]
[1737260416785,5.55224613,104700.0,104690.0,1.0678547]
[1737260416986,5.53314413,104700.0,104690.0,1.0678547]
[1737260417191,5.45673613,104700.0,104690.0,1.0678547]
[1737260417711,5.45673613,104700.0,104690.0,0.99731892]
[1737260418036,5.45673613,104700.0,104690.0,1.0678547]
[1737260418450,5.36122613,104700.0,104690.0,1.0678547]
[1737260419002,5.34212413,104700.0,104690.0,1.0678547]
[1737260419199,5.26571613,104700.0,104690.0,1.0678547]
[1737260420116,5.14620613,104700.0,104690.0,1.1678547]
[1737260420344,5.01810613,104700.0,104690.0,1.25569627]
[1737260420541,4.97210613,104700.0,104690.0,1.20969627]
[1737260420769,4.97210613,104700.0,104690.0,1.2146072]
[1737260421131,4.89569813,104700.0,104690.0,1.2146072]
[1737260421377,4.87659613,104700.0,104690.0,1.32950904]
[1737260421939,4.86230467,104700.0,104690.0,1.32950904]
[1737260422147,4.7853516,104700.0,104690.0,0.95785694]
[1737260422461,4.7422496,104700.0,104690.0,0.96741233]
[1737260422865,4.70709311,104700.0,104690.0,0.96741233]
[1737260423105,4.61158311,104700.0,104690.0,0.96741233]
[1737260423408,4.59396216,104700.0,104690.0,1.33906443]
[1737260423585,4.59486075,104700.0,104690.0,1.3341535]
[1737260423789,4.46195624,104700.0,104690.0,2.0848255]
[1737260423993,4.30146655,104700.0,104690.0,2.6334255]
[1737260424217,4.02662595,104700.0,104690.0,3.00889778]
[1737260424361,3.67548811,104700.0,104690.0,3.00889778]
[1737260424562,3.64722328,104700.0,104690.0,3.00889778]
[1737260424761,3.64722328,104700.0,104690.0,2.9905655]
[1737260424963,3.53359583,104700.0,104690.0,2.9905655]
[1737260425163,3.47628983,104700.0,104690.0,2.9905655]
[1737260425374,3.38656536,104700.0,104690.0,2.27119669]
[1737260425563,3.37681443,104700.0,104690.0,2.3998504]
[1737260425761,3.37681443,104700.0,104690.0,1.9174896]
[1737260425970,3.33861043,104700.0,104690.0,2.1246296]
[1737260426243,3.27432146,104700.0,104690.0,1.8968516]
[1737260426394,3.27432146,104700.0,104690.0,2.8470446]
[1737260427004,3.24032946,104700.0,104690.0,2.8470446]
[1737260427203,3.10462146,104700.0,104690.0,2.8470446]
[1737260427432,3.10462146,104700.0,104690.0,3.22480585]
[1737260427596,3.10462146,104700.0,104690.0,3.19883485]
[1737260428019,3.02821346,104700.0,104690.0,2.67442985]
[1737260428216,3.00911146,104700.0,104690.0,1.40231285]
[1737260428441,3.00911146,104700.0,104690.0,1.25231285]
[1737260428777,3.00911146,104700.0,104690.0,1.26603285]
[1737260428976,3.00911146,104700.0,104690.0,1.40231285]
[1737260429180,2.91360146,104700.0,104690.0,1.26603285]
[1737260429447,2.91360146,104700.0,104690.0,1.05323128]
[1737260429677,2.91360146,104700.0,104690.0,0.96695128]
[1737260430131,2.87539746,104700.0,104690.0,0.8679516]
[1737260430296,2.81809146,104700.0,104690.0,0.8449516]
[1737260430535,2.81809146,104700.0,104690.0,0.81521237]
[1737260431364,2.81809146,104700.0,104690.0,0.7956343]
[1737260431982,2.81809146,104700.0,104690.0,0.9456343]
[1737260432116,2.81809146,104700.0,104690.0,0.94973993]
[1737260432325,2.81809146,104700.0,104690.0,0.97935517]
[1737260433149,2.81809146,104700.0,104690.0,0.96563517]
[1737260433384,2.81809146,104700.0,104690.0,0.97935517]
[1737260433915,2.81055964,104700.0,104690.0,0.97935517]
[1737260434663,2.71504964,104700.0,104690.0,0.88121324]
[1737260435046,2.65021182,104700.0,104690.0,0.88121324]
[1737260435250,2.61200782,104700.0,104690.0,0.76126147]
[1737260435452,2.61200782,104700.0,104690.0,1.01702304]
[1737260435827,2.604476,104700.0,104690.0,1.01702304]
[1737260436047,2.585374,104700.0,104690.0,1.07416304]
[1737260436658,2.57784218,104700.0,104690.0,1.07416304]
[1737260436895,2.57784218,104700.0,104690.0,1.01702304]
[1737260437257,2.57784218,104700.0,104690.0,1.00330304]
[1737260437499,2.57784218,104700.0,104690.0,0.85330304]
[1737260437732,2.57031036,104700.0,104690.0,0.85330304]
[1737260437939,2.57031036,104700.0,104690.0,0.86650304]
[1737260438089,2.65051036,104700.0,104690.0,0.85330304]
[1737260438271,2.65051036,104700.0,104690.0,0.56792623]
[1737260438479,2.64297854,104700.0,104690.0,0.59758049]
[1737260438693,2.56277854,104700.0,104690.0,0.56792623]
[1737260438866,2.56277854,104700.0,104690.0,0.58112623]
[1737260439084,2.56277854,104700.0,104690.0,0.794487]
[1737260439577,2.55524672,104700.0,104690.0,0.944487]
[1737260439836,2.55524672,104700.0,104690.0,1.24321536]
[1737260440054,2.55524672,104700.0,104690.0,1.17267958]
[1737260440263,2.55524672,104700.0,104690.0,1.13647958]
[1737260440465,2.63544672,104700.0,104690.0,1.13647958]
[1737260440912,2.63544672,104700.0,104690.0,1.00947958]
[1737260441324,2.63544672,104700.0,104690.0,1.15947958]
[1737260441492,2.63544672,104700.0,104690.0,0.94611881]
[1737260443484,2.63544672,104700.0,104690.0,0.88983667]
[1737260443639,2.63544672,104700.0,104690.0,0.88931932]
[1737260444556,2.63544672,104700.0,104690.0,0.72177801]
[1737260445024,2.63544672,104700.0,104690.0,0.64001858]
[1737260445460,2.6279149,104700.0,104690.0,0.64001858]
[1737260445639,2.6279149,104700.0,104690.0,0.72177801]
[1737260446259,2.6279149,104700.0,104690.0,0.89247993]
[1737260446485,2.62038308,104700.0,104690.0,0.89247993]
[1737260446623,2.62038308,104700.0,104690.0,0.8107205]
[1737260447059,2.61285126,104700.0,104690.0,0.8107205]
[1737260447258,2.61285126,104700.0,104690.0,0.6607205]
[1737260447578,2.61285126,104700.0,104690.0,0.8107205]
[1737260447734,2.61285126,104700.0,104690.0,0.64001858]
[1737260447940,2.60531944,104700.0,104690.0,0.64001858]
[1737260448402,2.60531944,104700.0,104690.0,0.72177801]
[1737260448963,2.59778762,104700.0,104690.0,0.72177801]
[1737260449839,2.59778762,104700.0,104690.0,0.89247993]
[1737260450075,2.5902558,104700.0,104690.0,0.89247993]
[1737260451497,2.5902558,104700.0,104690.0,1.19937648]
[1737260451705,2.5902558,104700.0,104690.0,1.22907208]
[1737260451910,2.50252398,104700.0,104690.0,1.22907208]
[1737260452311,2.50252398,104700.0,104690.0,0.97274452]
[1737260453118,2.49499216,104700.0,104690.0,0.97274452]
[1737260453357,2.39948216,104700.0,104690.0,0.97274452]
[1737260453560,2.39948216,104700.0,104690.0,1.07274452]
[1737260453772,2.39948216,104700.0,104690.0,1.07765588]
[1737260454125,2.30333017,104700.0,104690.0,1.07765588]
[1737260454304,2.28181486,104700.0,104690.0,1.07765588]
[1737260454922,2.28181486,104700.0,104690.0,1.19965556]
[1737260455133,2.20540686,104700.0,104690.0,1.19965556]
[1737260455328,2.18630486,104700.0,104690.0,1.19965556]
[1737260455750,2.16279486,104700.0,104690.0,1.19965556]
[1737260456114,2.06262686,104700.0,104690.0,1.19965556]
[1737260456319,1.92199365,104700.0,104690.0,1.28141499]
[1737260456521,1.82671464,104700.0,104690.0,1.73212123]
[1737260456726,1.56958704,104700.0,104690.0,2.63786123]
[1737260457039,1.46534304,104700.0,104690.0,2.58449087]
[1737260457267,1.36910304,104700.0,104690.0,2.69811887]
[1737260457832,1.34387304,104700.0,104690.0,2.32035762]
[1737260458029,1.32590063,104700.0,104690.0,1.62035762]
[1737260458371,1.18306732,104700.0,104690.0,1.62035762]
[1737260458797,1.1755355,104700.0,104690.0,1.07667236]
[1737260459208,1.14890168,104700.0,104690.0,0.96304436]
[1737260459353,0.43519878,104700.0,104690.0,1.81164436]
[1737260459603,0.43519878,104700.0,104690.0,2.51719636]